fUST/lending_fUST_20241006
["ID","MTS","AMOUNT","RATE_DAILY","PERIOD"]
[339948956,1728195038877,-151.0,0.00013678,2]
[339948957,1728195038888,-151.0,0.00013678,2]
[339948958,1728195038899,-155.527157,0.00013678,2]
[339948959,1728195038909,-155.917201,0.00013678,2]
[339948960,1728195038919,-152.239741,0.00013678,2]
[339948961,1728195038929,-199.510753,0.00013678,2]
[339948962,1728195038939,-151.0,0.00013678,2]
[339948963,1728195038951,-151.0,0.00013678,2]
[339948964,1728195038964,-151.0,0.00013678,2]
[339948965,1728195038975,-151.0,0.00013678,2]
[339948966,1728195038985,-189.670054,0.00013678,2]
[339948967,1728195038996,-30426.7599528,0.00013678,2]
[339948968,1728195039007,-3799.2549588,0.00013678,2]
[339948969,1728195039018,-12095.02290438,0.00013679,2]
[339948970,1728195039029,-150774.66345457,0.0001368,2]
[339948971,1728195039049,-7088.93472246,0.0001368,2]
[339948972,1728195039064,-10998.71788242,0.0001368,2]
[339948976,1728195040456,-88822.72957944,0.0001368,2]
[339948986,1728195043573,-151.0,0.00013677,2]
[339948987,1728195043585,-151.0,0.00013677,2]
[339948988,1728195043596,-151.0,0.00013678,2]
[339948989,1728195043606,-151.251563,0.00013679,2]
[339948990,1728195043617,-5146.59992552,0.0001368,2]
[339948994,1728195047672,5000.0,0.00010209,2]
[339948996,1728195079386,5000.0,0.00010209,2]
[339949074,1728196238453,-261.053787,0.00012,2]
[339949076,1728196238462,-157.981875,0.0001256,2]
[339949078,1728196238471,-157.981875,0.00012653,2]
[339949080,1728196238484,-157.981875,0.00012747,2]
[339949082,1728196238494,-157.981875,0.0001284,2]
[339949083,1728196238505,-1378.3204916,0.0001292,2]
[339949084,1728196238516,-157.981875,0.00012934,2]
[339949085,1728196238525,-157.981875,0.00013027,2]
[339949086,1728196238536,-157.981875,0.00013121,2]
[339949087,1728196238546,-153.0,0.00013205,2]
[339949088,1728196238557,-214.95124115,0.00013205,2]
[339949089,1728196238571,-606.95107975,0.00013205,2]
[339949090,1728196238585,-157.981875,0.00013214,2]
[339949091,1728196238597,-5975.18664439,0.00013224,2]
[339949092,1728196238608,-300.0,0.00013269,2]
[339949093,1728196238618,-300.0,0.00013269,2]
[339949094,1728196238631,-465.00036171,0.00013324,2]
[339949095,1728196238641,-153.0,0.00013408,2]
[339949096,1728196238652,-1000.0,0.0001342,2]
[339949097,1728196238665,-1378.3204916,0.0001342,2]
[339949098,1728196238676,-306.3571712,0.00013425,2]
[339949099,1728196238688,-600.0,0.00013439,2]
[339949100,1728196238699,-2528.20794821,0.0001357,2]
[339949101,1728196238715,-1154.59650366,0.000136,3]
[339949102,1728196238727,-1000.0,0.0001366,2]
[339949103,1728196238738,-356.88873121,0.0001367,2]
[339949104,1728196238748,-408.0,0.0001367,2]
[339949105,1728196238759,-24341.4079622,0.0001367,2]
[339949106,1728196238771,-2469.51572321,0.0001367,2]
[339949107,1728196238780,-500.0,0.00013673,2]
[339949108,1728196238792,-549.1192416,0.00013673,2]
[339949109,1728196238802,-500.0,0.00013673,2]
[339949110,1728196238814,-516.05353514,0.00013673,2]
[339949111,1728196238824,-500.0,0.00013673,2]
[339949112,1728196238836,-73024.2238866,0.00013678,2]
[339949113,1728196238847,-7408.54716963,0.00013678,2]
[339949114,1728196238858,-24341.4079622,0.00013678,2]
[339949115,1728196238868,-2469.51572321,0.00013678,2]
[339949116,1728196238878,-121707.039811,0.00013678,2]
[339949117,1728196238889,-19756.1257857,0.00013678,2]
[339949118,1728196238900,-12095.02290438,0.00013679,2]
[339949119,1728196238912,-42796.1686113,0.0001368,2]
[339949158,1728196243551,-6140.00000002,0.0001368,2]
[339949168,1728196246455,-501.63622328,0.00013673,2]
[339949169,1728196246467,-9498.36377672,0.0001368,2]
[339949171,1728196380601,30755.43565519,0.0001,30]
[339949172,1728196380625,59244.56434481,0.0001,30]
[339949231,1728197432738,-248.001097,0.00012,2]
[339949232,1728197432750,-158.79117,0.00012608,2]
[339949233,1728197432762,-158.79117,0.00012827,2]
[339949235,1728197432774,-980.6733804,0.0001292,2]
[339949237,1728197432783,-158.79117,0.00013046,2]
[339949239,1728197432794,-2508.28672944,0.00013192,2]
[339949246,1728197433017,-158.79117,0.00013265,2]
[339949247,1728197433027,-980.6733804,0.0001342,2]
[339949248,1728197433037,-213.8970169,0.00013425,2]
[339949249,1728197433046,-2212.18195464,0.00013573,2]
[339949250,1728197433056,-300.0,0.00013671,2]
[339949251,1728197433067,-300.0,0.00013671,2]
[339949252,1728197433076,-19908.4301309,0.00013672,2]
[339949253,1728197433087,-864.33050309,0.00013672,2]
[339949254,1728197433097,-501.11138994,0.00013673,2]
[339949255,1728197433107,-501.41685243,0.00013673,2]
[339949256,1728197433117,-500.7932319,0.00013673,2]
[339949257,1728197433127,-500.0,0.00013673,2]
[339949258,1728197433137,-500.0,0.00013673,2]
[339949259,1728197433147,-500.0,0.00013673,2]
[339949260,1728197433158,-321.77404846,0.00013673,2]
[339949261,1728197433167,-19908.4301309,0.00013678,2]
[339949262,1728197433177,-864.33050309,0.00013678,2]
[339949263,1728197433186,-19245.20608051,0.00013678,2]
[339949264,1728197433198,-2696.00307964,0.00013678,2]
[339949274,1728197438690,-3218.30441574,0.00013678,2]
[339949275,1728197438869,-34565.77681671,0.00013678,2]
[339949276,1728197438879,-1445.29509139,0.00013678,2]
[339949286,1728197443816,-1147.69641788,0.00013678,2]
[339949287,1728197443826,-228.199,0.00013678,2]
[339949288,1728197443836,-1723.60458212,0.00013678,2]
[339949296,1728197446821,-77910.11594138,0.00013678,2]
[339949297,1728197446831,-3457.32201236,0.00013678,2]
[339949298,1728197446841,-4793.2153694,0.00013679,2]
[339949299,1728197446852,-193.75753458,0.00013679,2]
[339949300,1728197446861,-150.0,0.00013679,2]
[339949301,1728197446871,-525.0,0.00013679,2]
[339949302,1728197446882,-1218.0,0.00013679,2]
[339949303,1728197446892,-285.483,0.00013679,2]
[339949304,1728197446902,-188407.31074328,0.0001368,2]
[339949305,1728197446914,-50156.15111011,0.0001368,2]
[339949334,1728198369465,1511.56,0.000102,2]
[339949421,1728198922555,-862.93,0.00010959,2]
[339949422,1728198922579,-300.0,0.00011517,2]
[339949423,1728198922602,-300.0,0.00011517,2]
[339949424,1728198922624,-31211.11400456,0.00011518,2]
[339949425,1728198922647,-3577.4408675,0.00011518,2]
[339949426,1728198922668,-254.273865,0.00012,2]
[339949427,1728198922693,-63494.24126294,0.00012518,2]
[339949482,1728199832083,-241.560171,0.00012,2]
[339949483,1728199832094,-3678.88969868,0.00012064,2]
[339949484,1728199832103,-250.0,0.00012549,2]
[339949485,1728199832114,-949.447285,0.0001292,2]
[339949486,1728199832124,-160.0,0.000134,3]
[339949487,1728199832136,-209.3051165,0.000134,2]
[339949488,1728199832146,-308.3162392,0.000134,2]
[339949489,1728199832157,-260.97375732,0.0001342,2]
[339949495,1728199838013,-303.0,0.0001342,2]
[339949496,1728199838024,-385.47352768,0.0001342,2]
[339949498,1728199838034,-300.0,0.00013562,2]
[339949500,1728199838044,-300.0,0.00013562,2]
[339949501,1728199838053,-3925.70099527,0.00013563,2]
[339949503,1728199838063,-150.0,0.00013567,2]
[339949505,1728199838073,-525.001,0.00013567,2]
[339949507,1728199838082,-1218.0,0.00013567,2]
[339949509,1728199838092,-185.5884847,0.00013571,2]
[339949511,1728199838103,-185.5884847,0.0001358,2]
[339949513,1728199838113,-185.5884847,0.00013588,2]
[339949514,1728199838123,-1000.0,0.00013588,2]
[339949515,1728199838134,-150.108966,0.000136,2]
[339949516,1728199838146,-2747.81507815,0.00013667,2]
[339949517,1728199838157,-338.51140745,0.00013667,2]
[339949518,1728199838168,-19097.808743,0.00013668,2]
[339949519,1728199838178,-475.38177668,0.00013668,2]
[339949520,1728199838190,-19097.808743,0.00013668,2]
[339949521,1728199838200,-475.38177668,0.00013668,2]
[339949522,1728199838212,-45703.21564617,0.00013677,2]
[339949523,1728199838222,-15605.55700228,0.00013678,2]
[339949524,1728199838232,-19097.808743,0.00013678,2]
[339949525,1728199838242,-475.38177668,0.00013678,2]
[339949526,1728199838253,-160.97493,0.00013678,2]
[339949527,1728199838265,-266.30723,0.00013678,2]
[339949528,1728199838275,-153.511122,0.00013678,2]
[339949529,1728199838287,-244.658,0.00013678,2]
[339949530,1728199838297,-152.861821,0.00013678,2]
[339949531,1728199838309,-151.0,0.00013678,2]
[339949532,1728199838510,-151.0,0.00013678,2]
[339949533,1728199838521,-253.117407,0.00013678,2]
[339949534,1728199838531,-151.0,0.00013678,2]
[339949535,1728199838540,-151.0,0.00013678,2]
[339949536,1728199838550,-151.0,0.00013678,2]
[339949537,1728199838560,-160.424139,0.00013678,2]
[339949538,1728199838570,-154.902295,0.00013678,2]
[339949539,1728199838579,-151.0,0.00013678,2]
[339949540,1728199838589,-151.0,0.00013678,2]
[339949541,1728199838598,-151.0,0.00013678,2]
[339949542,1728199838607,-151.0,0.00013678,2]
[339949543,1728199838617,-236.470514,0.00013678,2]
[339949544,1728199838627,-151.0,0.00013678,2]
[339949545,1728199838637,-151.0,0.00013678,2]
[339949546,1728199838647,-151.0,0.00013678,2]
[339949547,1728199838657,-151.0,0.00013678,2]
[339949548,1728199838668,-151.0,0.00013678,2]
[339949549,1728199838681,-151.0,0.00013678,2]
[339949550,1728199838692,-152.175292,0.00013678,2]
[339949551,1728199838704,-151.900565,0.00013678,2]
[339949552,1728199838715,-151.0,0.00013678,2]
[339949553,1728199838726,-151.0,0.00013678,2]
[339949554,1728199838737,-152.713068,0.00013678,2]
[339949555,1728199838748,-151.0,0.00013678,2]
[339949556,1728199838757,-151.0,0.00013678,2]
[339949557,1728199838767,-151.0,0.00013678,2]
[339949558,1728199838776,-95489.0437151,0.00013678,2]
[339949559,1728199838786,-2376.9088834,0.00013678,2]
[339949560,1728199838795,-170.572,0.00013679,2]
[339949561,1728199838804,-150.0,0.00013679,2]
[339949562,1728199838816,-150.158,0.00013679,2]
[339949563,1728199838825,-150.0,0.00013679,2]
[339949564,1728199838835,-150.079,0.00013679,2]
[339949565,1728199838846,-539.03055949,0.0001368,2]
[339949566,1728199838856,-151.0,0.00013685,2]
[339949567,1728199838867,-153.867225,0.00013685,2]
[339949568,1728199838877,-271.929955,0.00013685,2]
[339949569,1728199838888,-271.929955,0.00013685,2]
[339949570,1728199838900,-151.0,0.00013685,2]
[339949571,1728199838911,-662.946435,0.00013685,2]
[339949572,1728199838921,-1008.366325,0.00013685,2]
[339949573,1728199838932,-173.886322,0.00013685,2]
[339949574,1728199838942,-1049.457293,0.00013685,2]
[339949575,1728199838952,-2426.504864,0.00013685,2]
[339949576,1728199838964,-163.91018,0.00013685,2]
[339949577,1728199838976,-787.054603,0.00013685,2]
[339949578,1728199838986,-209.93701,0.00013685,2]
[339949579,1728199838996,-1302.00344042,0.00013687,2]
[339949580,1728199839006,-155.384485,0.00013688,2]
[339949581,1728199839016,-151.0,0.00013688,2]
[339949582,1728199839025,-151.0,0.00013688,2]
[339949583,1728199839035,-151.884963,0.00013688,2]
[339949584,1728199839044,-153.680571,0.00013688,2]
[339949585,1728199839054,-185.71037,0.00013688,2]
[339949586,1728199839068,-271.929955,0.00013688,2]
[339949587,1728199839078,-271.929955,0.00013688,2]
[339949588,1728199839087,-271.929955,0.00013688,2]
[339949589,1728199839096,-271.929955,0.00013688,2]
[339949590,1728199839107,-151.0,0.00013688,2]
[339949591,1728199839117,-151.0,0.00013688,2]
[339949592,1728199839126,-151.0,0.00013688,2]
[339949593,1728199839137,-153.166114,0.00013688,2]
[339949594,1728199839146,-1467.988219,0.00013688,2]
[339949595,1728199839156,-1467.988219,0.00013688,2]
[339949596,1728199839166,-1467.988219,0.00013688,2]
[339949597,1728199839176,-1467.988219,0.00013688,2]
[339949598,1728199839186,-1467.988219,0.00013688,2]
[339949599,1728199839195,-1467.988219,0.00013688,2]
[339949600,1728199839205,-151.0,0.00013688,2]
[339949601,1728199839215,-151.0,0.00013688,2]
[339949602,1728199839225,-151.0,0.00013688,2]
[339949603,1728199839235,-151.0,0.00013688,2]
[339949604,1728199839245,-151.0,0.00013688,2]
[339949605,1728199839256,-151.0,0.00013688,2]
[339949606,1728199839266,-395.154962,0.00013688,2]
[339949607,1728199839275,-395.154962,0.00013688,2]
[339949608,1728199839285,-395.154962,0.00013688,2]
[339949609,1728199839295,-395.154962,0.00013688,2]
[339949610,1728199839304,-395.154962,0.00013688,2]
[339949611,1728199839315,-151.0,0.00013688,2]
[339949612,1728199839325,-395.154962,0.00013688,2]
[339949613,1728199839335,-151.0,0.00013688,2]
[339949614,1728199839345,-155.06845,0.00013688,2]
[339949615,1728199839355,-151.0,0.00013688,2]
[339949616,1728199839365,-151.0,0.00013688,2]
[339949617,1728199839375,-151.0,0.00013688,2]
[339949618,1728199839386,-151.0,0.00013688,2]
[339949619,1728199839396,-151.0,0.00013688,2]
[339949620,1728199839407,-151.0,0.00013688,2]
[339949621,1728199839417,-151.0,0.00013688,2]
[339949622,1728199839428,-151.0,0.00013688,2]
[339949623,1728199839437,-151.0,0.00013688,2]
[339949624,1728199839448,-151.0,0.00013688,2]
[339949625,1728199839458,-151.0,0.00013688,2]
[339949626,1728199839468,-176.267085,0.00013688,2]
[339949627,1728199839477,-151.0,0.00013688,2]
[339949628,1728199839487,-151.0,0.00013688,2]
[339949629,1728199839497,-151.0,0.00013688,2]
[339949631,1728199839507,-151.0,0.00013688,2]
[339949632,1728199839517,-155.527157,0.00013688,2]
[339949633,1728199839527,-151.0,0.00013688,2]
[339949634,1728199839537,-151.0,0.00013688,2]
[339949635,1728199839547,-151.0,0.00013688,2]
[339949637,1728199839556,-183.558908,0.00013688,2]
[339949639,1728199839568,-183.558908,0.00013688,2]
[339949641,1728199839578,-183.558908,0.00013688,2]
[339949642,1728199839589,-183.558908,0.00013688,2]
[339949643,1728199839599,-183.558908,0.00013688,2]
[339949645,1728199839611,-183.558908,0.00013688,2]
[339949647,1728199839623,-151.0,0.00013688,2]
[339949649,1728199839633,-151.0,0.00013688,2]
[339949651,1728199839645,-151.0,0.00013688,2]
[339949652,1728199839654,-151.0,0.00013688,2]
[339949654,1728199839667,-151.0,0.00013688,2]
[339949656,1728199839677,-151.0,0.00013688,2]
[339949658,1728199839686,-151.0,0.00013688,2]
[339949660,1728199839699,-151.0,0.00013688,2]
[339949663,1728199839709,-151.0,0.00013688,2]
[339949664,1728199839718,-151.0,0.00013688,2]
[339949666,1728199839727,-151.0,0.00013688,2]
[339949669,1728199839737,-151.0,0.00013688,2]
[339949671,1728199839747,-151.0,0.00013688,2]
[339949673,1728199839756,-155.917201,0.00013688,2]
[339949675,1728199839767,-151.0,0.00013688,2]
[339949676,1728199839777,-151.0,0.00013688,2]
[339949678,1728199839787,-171.454523,0.00013688,2]
[339949680,1728199839797,-263.649943,0.00013688,2]
[339949682,1728199839807,-151.0,0.00013688,2]
[339949684,1728199839819,-151.0,0.00013688,2]
[339949686,1728199839828,-153.653302,0.00013688,2]
[339949688,1728199839839,-151.0,0.00013688,2]
[339949690,1728199839849,-151.509508,0.00013688,2]
[339949691,1728199839858,-151.0,0.00013688,2]
[339949692,1728199839867,-151.0,0.00013688,2]
[339949694,1728199839877,-151.0,0.00013688,2]
[339949695,1728199839887,-151.0,0.00013688,2]
[339949696,1728199839899,-151.0,0.00013688,2]
[339949697,1728199839911,-151.0,0.00013688,2]
[339949698,1728199839921,-487.955716,0.00013688,2]
[339949699,1728199839932,-151.0,0.00013688,2]
[339949700,1728199839943,-487.955716,0.00013688,2]
[339949701,1728199839955,-487.955716,0.00013688,2]
[339949702,1728199839966,-151.0,0.00013688,2]
[339949703,1728199839975,-151.0,0.00013688,2]
[339949704,1728199839985,-487.955716,0.00013688,2]
[339949705,1728199839995,-487.955716,0.00013688,2]
[339949706,1728199840005,-487.955716,0.00013688,2]
[339949707,1728199840014,-151.0,0.00013688,2]
[339949708,1728199840023,-152.004746,0.00013688,2]
[339949709,1728199840032,-151.0,0.00013688,2]
[339949710,1728199840042,-151.0,0.00013688,2]
[339949711,1728199840052,-151.0,0.00013688,2]
[339949712,1728199840063,-151.0,0.00013688,2]
[339949713,1728199840072,-151.0,0.00013688,2]
[339949714,1728199840082,-151.0,0.00013688,2]
[339949715,1728199840092,-3335.598368,0.00013688,2]
[339949716,1728199840104,-3335.598368,0.00013688,2]
[339949717,1728199840115,-3335.598368,0.00013688,2]
[339949718,1728199840126,-151.0,0.00013688,2]
[339949719,1728199840135,-151.0,0.00013688,2]
[339949720,1728199840144,-151.0,0.00013688,2]
[339949721,1728199840154,-3335.598368,0.00013688,2]
[339949722,1728199840163,-3335.598368,0.00013688,2]
[339949723,1728199840172,-151.0,0.00013688,2]
[339949724,1728199840184,-3335.598368,0.00013688,2]
[339949725,1728199840196,-151.0,0.00013688,2]
[339949726,1728199840208,-151.0,0.00013688,2]
[339949727,1728199840218,-151.0,0.00013688,2]
[339949728,1728199840229,-151.0,0.00013688,2]
[339949729,1728199840239,-151.0,0.00013688,2]
[339949730,1728199840248,-151.0,0.00013688,2]
[339949731,1728199840260,-76391.2349721,0.00013688,2]
[339949732,1728199840271,-5704.58132016,0.00013688,2]
[339949733,1728199840282,-500.0,0.00013698,2]
[339949734,1728199840293,-500.0,0.00013698,2]
[339949735,1728199840304,-500.0,0.00013698,2]
[339949736,1728199840320,-500.0,0.00013698,2]
[339949737,1728199840331,-437.09779599,0.00013698,2]
[339949738,1728199840342,-500.0,0.00013698,2]
[339949739,1728199840354,-550.0,0.00013698,2]
[339949740,1728199840367,-500.0,0.00013698,2]
[339949741,1728199840377,-500.0,0.00013698,2]
[339949742,1728199840386,-500.0,0.00013698,2]
[339949743,1728199840398,-500.0,0.00013698,2]
[339949744,1728199840409,-500.0,0.00013698,2]
[339949745,1728199840420,-500.0,0.00013698,2]
[339949746,1728199840431,-500.0,0.00013698,2]
[339949747,1728199840441,-196.3273407,0.00013698,2]
[339949748,1728199840451,-500.0,0.00013698,2]
[339949749,1728199840461,-208.38837445,0.00013698,2]
[339949750,1728199840471,-300.80072736,0.00013698,2]
[339949751,1728199840482,-500.0,0.00013698,2]
[339949752,1728199840491,-500.0,0.00013698,2]
[339949753,1728199840502,-500.0,0.00013698,2]
[339949754,1728199840513,-500.0,0.00013698,2]
[339949755,1728199840524,-500.0,0.00013698,2]
[339949756,1728199840534,-244.18785051,0.00013698,2]
[339949757,1728199840544,-500.0,0.00013698,2]
[339949758,1728199840555,-500.0,0.00013698,2]
[339949759,1728199840568,-500.0,0.00013698,2]
[339949760,1728199840578,-410.44767703,0.00013698,2]
[339949761,1728199840589,-500.0,0.00013698,2]
[339949762,1728199840601,-500.0,0.00013698,2]
[339949763,1728199840611,-500.0,0.00013698,2]
[339949764,1728199840622,-500.0,0.00013698,2]
[339949765,1728199840633,-500.0,0.00013698,2]
[339949766,1728199840644,-500.0,0.00013698,2]
[339949767,1728199840655,-500.0,0.00013698,2]
[339949768,1728199840666,-500.0,0.00013698,2]
[339949769,1728199840677,-500.0,0.00013698,2]
[339949770,1728199840688,-500.0,0.00013698,2]
[339949771,1728199840699,-500.0,0.00013698,2]
[339949772,1728199840711,-500.0,0.00013698,2]
[339949773,1728199840721,-500.0,0.00013698,2]
[339949774,1728199840731,-500.0,0.00013698,2]
[339949775,1728199840741,-500.0,0.00013698,2]
[339949776,1728199840751,-500.0,0.00013698,2]
[339949777,1728199840761,-325.24391816,0.00013698,2]
[339949778,1728199840772,-500.0,0.00013698,2]
[339949779,1728199840781,-500.0,0.00013698,2]
[339949780,1728199840790,-301.76882725,0.00013698,2]
[339949781,1728199840799,-500.0,0.00013698,2]
[339949782,1728199840809,-500.0,0.00013698,2]
[339949783,1728199840820,-500.0,0.00013698,2]
[339949784,1728199840830,-820.26354518,0.00013698,2]
[339949785,1728199840839,-500.0,0.00013698,2]
[339949786,1728199840848,-503.62361211,0.00013698,2]
[339949787,1728199840858,-473.58084891,0.00013698,2]
[339949788,1728199840867,-500.0,0.00013698,2]
[339949789,1728199840877,-611.91534984,0.00013698,2]
[339949790,1728199840887,-423.16404916,0.00013698,2]
[339949791,1728199840897,-500.0,0.00013698,2]
[339949792,1728199840906,-500.0,0.00013698,2]
[339949793,1728199840915,-395.31204104,0.00013698,2]
[339949794,1728199840925,-500.0,0.00013698,2]
[339949795,1728199840934,-628.03014975,0.00013698,2]
[339949796,1728199840943,-500.0,0.00013698,2]
[339949797,1728199840952,-500.0,0.00013698,2]
[339949798,1728199840962,-500.0,0.00013698,2]
[339949799,1728199840971,-500.0,0.00013698,2]
[339949800,1728199840980,-194.12634208,0.00013698,2]
[339949801,1728199840989,-500.0,0.00013698,2]
[339949802,1728199840999,-500.0,0.00013698,2]
[339949803,1728199841008,-500.0,0.00013698,2]
[339949804,1728199841018,-500.0,0.00013698,2]
[339949805,1728199841027,-500.0,0.00013698,2]
[339949806,1728199841037,-202.27874709,0.00013698,2]
[339949807,1728199841046,-320.94081864,0.00013698,2]
[339949808,1728199841055,-500.0,0.00013698,2]
[339949809,1728199841064,-296.06984845,0.00013698,2]
[339949810,1728199841074,-566.2110483,0.00013698,2]
[339949811,1728199841083,-300.25319412,0.00013698,2]
[339949812,1728199841093,-500.0,0.00013698,2]
[339949813,1728199841102,-500.0,0.00013698,2]
[339949814,1728199841111,-500.0,0.00013698,2]
[339949815,1728199841121,-500.0,0.00013698,2]
[339949816,1728199841131,-500.0,0.00013698,2]
[339949817,1728199841141,-500.0,0.00013698,2]
[339949818,1728199841151,-500.0,0.00013698,2]
[339949819,1728199841161,-500.0,0.00013698,2]
[339949820,1728199841174,-500.0,0.00013698,2]
[339949821,1728199841185,-500.0,0.00013698,2]
[339949822,1728199841196,-500.0,0.00013698,2]
[339949823,1728199841207,-500.0,0.00013698,2]
[339949824,1728199841218,-500.0,0.00013698,2]
[339949825,1728199841228,-239.99645177,0.00013698,2]
[339949826,1728199841240,-332.09832738,0.00013698,2]
[339949827,1728199841252,-158.07990947,0.00013698,2]
[339949828,1728199841261,-500.0,0.00013698,2]
[339949829,1728199841273,-500.0,0.00013698,2]
[339949830,1728199841284,-466.75824816,0.00013698,2]
[339949831,1728199841294,-500.0,0.00013698,2]
[339949832,1728199841304,-500.0,0.00013698,2]
[339949833,1728199841314,-500.0,0.00013698,2]
[339949834,1728199841324,-500.0,0.00013698,2]
[339949835,1728199841335,-500.0,0.00013698,2]
[339949836,1728199841345,-500.0,0.00013698,2]
[339949837,1728199841357,-500.0,0.00013698,2]
[339949838,1728199841367,-500.0,0.00013698,2]
[339949839,1728199841379,-500.0,0.00013698,2]
[339949840,1728199841390,-500.0,0.00013698,2]
[339949841,1728199841400,-500.0,0.00013698,2]
[339949842,1728199841409,-500.0,0.00013698,2]
[339949843,1728199841418,-500.0,0.00013698,2]
[339949844,1728199841428,-500.0,0.00013698,2]
[339949845,1728199841437,-500.0,0.00013698,2]
[339949846,1728199841447,-500.0,0.00013698,2]
[339949847,1728199841456,-500.0,0.00013698,2]
[339949848,1728199841466,-500.0,0.00013698,2]
[339949849,1728199841475,-487.06063919,0.00013698,2]
[339949850,1728199841485,-500.0,0.00013698,2]
[339949851,1728199841496,-500.0,0.00013698,2]
[339949852,1728199841505,-500.0,0.00013698,2]
[339949853,1728199841515,-167.30982644,0.00013698,2]
[339949854,1728199841524,-500.0,0.00013698,2]
[339949855,1728199841533,-349.28208871,0.00013698,2]
[339949856,1728199841543,-500.0,0.00013698,2]
[339949857,1728199841552,-151.0,0.00013698,2]
[339949858,1728199841562,-151.0,0.00013698,2]
[339949859,1728199841571,-151.0,0.00013698,2]
[339949860,1728199841580,-151.0,0.00013698,2]
[339949861,1728199841591,-151.0,0.00013698,2]
[339949862,1728199841600,-151.0,0.00013698,2]
[339949863,1728199841611,-151.0,0.00013698,2]
[339949864,1728199841621,-151.0,0.00013698,2]
[339949865,1728199841630,-151.0,0.00013698,2]
[339949866,1728199841640,-151.0,0.00013698,2]
[339949867,1728199841651,-151.599732,0.00013698,2]
[339949868,1728199841662,-500.0,0.00013698,2]
[339949869,1728199841674,-500.62470601,0.00013698,2]
[339949870,1728199841687,-500.57761372,0.00013698,2]
[339949871,1728199841698,-500.0,0.00013698,2]
[339949872,1728199841709,-500.50824174,0.00013698,2]
[339949873,1728199841720,-500.0,0.00013698,2]
[339949874,1728199841733,-500.0,0.00013698,2]
[339949875,1728199841743,-500.0,0.00013698,2]
[339949876,1728199841754,-500.0,0.00013698,2]
[339949877,1728199841906,-500.0,0.00013698,2]
[339949878,1728199841918,-500.0,0.00013698,2]
[339949879,1728199841930,-502.38276657,0.00013698,2]
[339949880,1728199841940,-501.06041033,0.00013698,2]
[339949881,1728199841950,-267.06151566,0.00013698,2]
[339949882,1728199842024,-232.93848434,0.00013698,2]
[339949883,1728199842034,-500.0,0.00013698,2]
[339949884,1728199842044,-500.0,0.00013698,2]
[339949885,1728199842055,-500.0,0.00013698,2]
[339949886,1728199842067,-522.10915492,0.00013698,2]
[339949887,1728199842080,-500.0,0.00013698,2]
[339949888,1728199842092,-500.0,0.00013698,2]
[339949889,1728199842103,-500.0,0.00013698,2]
[339949890,1728199842113,-500.81689715,0.00013698,2]
[339949891,1728199842123,-500.0,0.00013698,2]
[339949892,1728199842134,-500.0,0.00013698,2]
[339949893,1728199842144,-500.0,0.00013698,2]
[339949894,1728199842154,-154.36234959,0.00013698,2]
[339949895,1728199842164,-519.46,0.00013698,2]
[339949896,1728199842174,-500.0,0.00013698,2]
[339949897,1728199842183,-500.0,0.00013698,2]
[339949898,1728199842194,-500.0,0.00013698,2]
[339949899,1728199842204,-500.0,0.00013698,2]
[339949900,1728199842216,-500.84691123,0.00013698,2]
[339949901,1728199842225,-500.0,0.00013698,2]